fUSD/lending_fUSD_20260506
["ID","MTS","AMOUNT","RATE_DAILY","PERIOD"]
[421666401,1778035846000,-152.15955082,0.00019141,2]
[421666400,1778035846000,-200.0,0.00019136,2]
[421666402,1778035846000,-3000.0,0.00019178,2]
[421666405,1778035846000,-500.0,0.00019178,2]
[421666414,1778035846000,-500.0,0.00019178,2]
[421666406,1778035846000,-500.0,0.00019178,2]
[421666404,1778035846000,-500.0,0.00019178,2]
[421666403,1778035846000,-500.0,0.00019178,2]
[421666413,1778035846000,-500.0,0.00019178,2]
[421666385,1778035846000,-150.436,0.00018425,2]
[421666468,1778035846000,-150.0,0.00019178,2]
[421666393,1778035846000,-200.0,0.0001881,2]
[421666459,1778035846000,-240.342369,0.00019178,2]
[421666495,1778035846000,-500.0,0.00019726,2]
[421666491,1778035846000,-500.0,0.00019726,2]
[421666509,1778035846000,-500.0,0.00019726,2]
[421666498,1778035846000,-500.0,0.00019726,2]
[421666508,1778035846000,-500.0,0.00019726,2]
[421666497,1778035846000,-500.0,0.00019726,2]
[421666504,1778035846000,-500.0,0.00019726,2]
[421666502,1778035846000,-500.0,0.00019726,2]
[421666501,1778035846000,-500.0,0.00019726,2]
[421666503,1778035846000,-500.0,0.00019726,2]
[421666500,1778035846000,-500.0,0.00019726,2]
[421666499,1778035846000,-500.0,0.00019726,2]
[421666507,1778035846000,-537.0,0.00019726,2]
[421666494,1778035846000,-500.0,0.00019726,2]
[421666506,1778035846000,-537.0,0.00019726,2]
[421666510,1778035846000,-537.0,0.00019726,2]
[421666511,1778035846000,-537.0,0.00019726,2]
[421666513,1778035846000,-537.0,0.00019726,2]
[421666515,1778035846000,-366.99161194,0.00019726,2]
[421666512,1778035846000,-500.0,0.00019726,2]
[421666514,1778035846000,-500.0,0.00019726,2]
[421666523,1778035846000,-500.0,0.00019726,2]
[421666517,1778035846000,-500.0,0.00019726,2]
[421666521,1778035846000,-537.0,0.00019726,2]
[421666518,1778035846000,-150.0,0.00019726,2]
[421666519,1778035846000,-537.0,0.00019726,2]
[421666516,1778035846000,-537.0,0.00019726,2]
[421666461,1778035846000,-240.342369,0.00019178,2]
[421666505,1778035846000,-326.77120536,0.00019726,2]
[421666493,1778035846000,-500.0,0.00019726,2]
[421666520,1778035846000,-500.0,0.00019726,2]
[421666496,1778035846000,-500.0,0.00019726,2]
[421666484,1778035846000,-500.0,0.00019726,2]
[421666458,1778035846000,-240.342369,0.00019178,2]
[421666463,1778035846000,-240.342369,0.00019178,2]
[421666467,1778035846000,-240.342369,0.00019178,2]
[421666466,1778035846000,-240.342369,0.00019178,2]
[421666464,1778035846000,-240.342369,0.00019178,2]
[421666465,1778035846000,-240.342369,0.00019178,2]
[421666462,1778035846000,-240.342369,0.00019178,2]
[421666469,1778035846000,-1503.70297435,0.00019178,2]
[421666478,1778035846000,-500.0,0.00019726,2]
[421666473,1778035846000,-2319.72410669,0.00019358,2]
[421666470,1778035846000,-359.48712633,0.00019178,2]
[421666471,1778035846000,-1436.07393916,0.0001927,2]
[421666472,1778035846000,-200.0,0.00019358,2]
[421666460,1778035846000,-240.342369,0.00019178,2]
[421666474,1778035846000,-194.72792766,0.00019416,2]
[421666475,1778035846000,-156.90090257,0.00019541,2]
[421666489,1778035846000,-506.33798591,0.00019726,2]
[421666488,1778035846000,-500.0,0.00019726,2]
[421666486,1778035846000,-500.0,0.00019726,2]
[421666487,1778035846000,-251.17490165,0.00019726,2]
[421666485,1778035846000,-500.0,0.00019726,2]
[421666492,1778035846000,-500.0,0.00019726,2]
[421666482,1778035846000,-500.0,0.00019726,2]
[421666477,1778035846000,-209.8895384,0.00019726,2]
[421666481,1778035846000,-500.0,0.00019726,2]
[421666476,1778035846000,-1594.61,0.00019669,2]
[421666480,1778035846000,-500.0,0.00019726,2]
[421666479,1778035846000,-500.0,0.00019726,2]
[421666483,1778035846000,-500.0,0.00019726,2]
[421666606,1778035847000,-500.0,0.00019726,2]
[421666601,1778035847000,-500.0,0.00019726,2]
[421666604,1778035847000,-500.0,0.00019726,2]
[421666614,1778035847000,-500.0,0.00019726,2]
[421666610,1778035847000,-500.0,0.00019726,2]
[421666599,1778035847000,-500.0,0.00019726,2]
[421666612,1778035847000,-500.0,0.00019726,2]
[421666608,1778035847000,-500.0,0.00019726,2]
[421666616,1778035847000,-500.0,0.00019726,2]
[421666580,1778035847000,-500.0,0.00019726,2]
[421666602,1778035847000,-537.0,0.00019726,2]
[421666597,1778035847000,-500.0,0.00019726,2]
[421666635,1778035847000,-537.0,0.00019726,2]
[421666619,1778035847000,-500.0,0.00019726,2]
[421666621,1778035847000,-500.0,0.00019726,2]
[421666623,1778035847000,-500.0,0.00019726,2]
[421666631,1778035847000,-635.42871133,0.00019726,2]
[421666633,1778035847000,-537.0,0.00019726,2]
[421666627,1778035847000,-493.40619236,0.00019726,2]
[421666637,1778035847000,-537.0,0.00019726,2]
[421666639,1778035847000,-537.0,0.00019726,2]
[421666641,1778035847000,-540.23170004,0.00019726,2]
[421666625,1778035847000,-500.0,0.00019726,2]
[421666629,1778035847000,-500.0,0.00019726,2]
[421666582,1778035847000,-500.0,0.00019726,2]
[421666643,1778035847000,-423.0,0.00019726,2]
[421666617,1778035847000,-537.0,0.00019726,2]
[421666585,1778035847000,-500.0,0.00019726,2]
[421666553,1778035847000,-537.0,0.00019726,2]
[421666593,1778035847000,-500.0,0.00019726,2]
[421666648,1778035847000,-517.59719864,0.00019726,2]
[421666538,1778035847000,-500.0,0.00019726,2]
[421666536,1778035847000,-500.0,0.00019726,2]
[421666542,1778035847000,-500.0,0.00019726,2]
[421666540,1778035847000,-537.0,0.00019726,2]
[421666546,1778035847000,-500.0,0.00019726,2]
[421666550,1778035847000,-500.0,0.00019726,2]
[421666527,1778035847000,-500.0,0.00019726,2]
[421666534,1778035847000,-537.0,0.00019726,2]
[421666532,1778035847000,-500.0,0.00019726,2]
[421666529,1778035847000,-537.0,0.00019726,2]
[421666525,1778035847000,-537.0,0.00019726,2]
[421666595,1778035847000,-500.0,0.00019726,2]
[421666548,1778035847000,-500.0,0.00019726,2]
[421666558,1778035847000,-500.0,0.00019726,2]
[421666559,1778035847000,-500.0,0.00019726,2]
[421666555,1778035847000,-500.0,0.00019726,2]
[421666571,1778035847000,-500.0,0.00019726,2]
[421666562,1778035847000,-537.0,0.00019726,2]
[421666563,1778035847000,-500.0,0.00019726,2]
[421666567,1778035847000,-537.0,0.00019726,2]
[421666569,1778035847000,-500.0,0.00019726,2]
[421666565,1778035847000,-500.0,0.00019726,2]
[421666587,1778035847000,-524.78889223,0.00019726,2]
[421666591,1778035847000,-500.0,0.00019726,2]
[421666589,1778035847000,-537.0,0.00019726,2]
[421666551,1778035847000,-537.0,0.00019726,2]
[421666645,1778035847000,-500.0,0.00019726,2]
[421666544,1778035847000,-500.0,0.00019726,2]
[421666649,1778035847000,-500.0,0.00019726,2]
[421666695,1778035847000,-150.0,0.00019726,2]
[421666692,1778035847000,-423.0,0.00019726,2]
[421666696,1778035847000,-150.0,0.00019726,2]
[421666694,1778035847000,-150.0,0.00019726,2]
[421666704,1778035847000,-150.0,0.00019726,2]
[421666708,1778035847000,-500.0,0.00019726,2]
[421666706,1778035847000,-218.61009254,0.00019726,2]
[421666707,1778035847000,-423.0,0.00019726,2]
[421666716,1778035847000,-423.0,0.00019726,2]
[421666709,1778035847000,-500.0,0.00019726,2]
[421666705,1778035847000,-150.0,0.00019726,2]
[421666713,1778035847000,-500.0,0.00019726,2]
[421666690,1778035847000,-423.0,0.00019726,2]
[421666712,1778035847000,-500.0,0.00019726,2]
[421666714,1778035847000,-500.0,0.00019726,2]
[421666710,1778035847000,-423.0,0.00019726,2]
[421666715,1778035847000,-423.0,0.00019726,2]
[421666718,1778035847000,-500.0,0.00019726,2]
[421666717,1778035847000,-500.0,0.00019726,2]
[421666719,1778035847000,-500.0,0.00019726,2]
[421666723,1778035847000,-500.0,0.00019726,2]
[421666721,1778035847000,-500.0,0.00019726,2]
[421666725,1778035847000,-446.25809725,0.00019726,2]
[421666720,1778035847000,-500.0,0.00019726,2]
[421666722,1778035847000,-500.0,0.00019726,2]
[421666724,1778035847000,-500.0,0.00019726,2]
[421666711,1778035847000,-500.0,0.00019726,2]
[421666697,1778035847000,-188.54851579,0.00019726,2]
[421666726,1778035847000,-500.0,0.00019726,2]
[421666700,1778035847000,-423.0,0.00019726,2]
[421666703,1778035847000,-150.0,0.00019726,2]
[421666656,1778035847000,-423.0,0.00019726,2]
[421666654,1778035847000,-500.0,0.00019726,2]
[421666650,1778035847000,-423.0,0.00019726,2]
[421666660,1778035847000,-423.0,0.00019726,2]
[421666653,1778035847000,-423.0,0.00019726,2]
[421666651,1778035847000,-423.0,0.00019726,2]
[421666652,1778035847000,-500.0,0.00019726,2]
[421666658,1778035847000,-500.0,0.00019726,2]
[421666662,1778035847000,-500.0,0.00019726,2]
[421666664,1778035847000,-423.0,0.00019726,2]
[421666675,1778035847000,-423.0,0.00019726,2]
[421666674,1778035847000,-500.0,0.00019726,2]
[421666647,1778035847000,-423.0,0.00019726,2]
[421666666,1778035847000,-500.0,0.00019726,2]
[421666699,1778035847000,-166.38904159,0.00019726,2]
[421666702,1778035847000,-423.0,0.00019726,2]
[421666688,1778035847000,-423.0,0.00019726,2]
[421666701,1778035847000,-150.0,0.00019726,2]
[421666678,1778035847000,-500.0,0.00019726,2]
[421666684,1778035847000,-423.0,0.00019726,2]
[421666698,1778035847000,-423.0,0.00019726,2]
[421666682,1778035847000,-500.0,0.00019726,2]
[421666670,1778035847000,-500.0,0.00019726,2]
[421666668,1778035847000,-423.0,0.00019726,2]
[421666680,1778035847000,-423.0,0.00019726,2]
[421666672,1778035847000,-423.0,0.00019726,2]
[421666686,1778035847000,-521.83722125,0.00019726,2]
[421666765,1778035848000,-500.0,0.00019894,2]
[421666766,1778035848000,-500.0,0.00019894,2]
[421666761,1778035848000,-500.0,0.00019894,2]
[421666763,1778035848000,-500.0,0.00019894,2]
[421666762,1778035848000,-500.0,0.00019894,2]
[421666755,1778035848000,-500.0,0.00019893,2]
[421666758,1778035848000,-500.0,0.00019894,2]
[421666759,1778035848000,-500.0,0.00019894,2]
[421666757,1778035848000,-346.95894298,0.00019894,2]
[421666756,1778035848000,-160.80309549,0.00019893,2]
[421666767,1778035848000,-500.0,0.00019894,2]
[421666772,1778035848000,-500.0,0.00019894,2]
[421666769,1778035848000,-500.0,0.00019894,2]
[421666774,1778035848000,-500.0,0.00019894,2]
[421666770,1778035848000,-500.0,0.00019894,2]
[421666768,1778035848000,-500.0,0.00019894,2]
[421666760,1778035848000,-500.0,0.00019894,2]
[421666773,1778035848000,-500.0,0.00019894,2]
[421666775,1778035848000,-500.0,0.00019894,2]
[421666778,1778035848000,-500.0,0.00019894,2]
[421666777,1778035848000,-500.0,0.00019894,2]
[421666776,1778035848000,-500.0,0.00019894,2]
[421666787,1778035848000,-513.87,0.00019894,2]
[421666779,1778035848000,-500.0,0.00019894,2]
[421666782,1778035848000,-500.0,0.00019894,2]
[421666771,1778035848000,-500.0,0.00019894,2]
[421666764,1778035848000,-500.0,0.00019894,2]
[421666748,1778035848000,-500.0,0.00019893,2]
[421666753,1778035848000,-513.87,0.00019893,2]
[421666785,1778035848000,-513.87,0.00019894,2]
[421666728,1778035848000,-500.0,0.00019726,2]
[421666727,1778035848000,-512.34278439,0.00019726,2]
[421666730,1778035848000,-500.0,0.00019726,2]
[421666729,1778035848000,-500.0,0.00019726,2]
[421666734,1778035848000,-500.0,0.00019726,2]
[421666736,1778035848000,-500.0,0.00019726,2]
[421666737,1778035848000,-500.0,0.00019726,2]
[421666733,1778035848000,-500.0,0.00019726,2]
[421666732,1778035848000,-500.0,0.00019726,2]
[421666731,1778035848000,-500.0,0.00019726,2]
[421666735,1778035848000,-500.0,0.00019726,2]
[421666738,1778035848000,-500.0,0.00019726,2]
[421666739,1778035848000,-500.0,0.00019726,2]
[421666741,1778035848000,-500.0,0.00019726,2]
[421666752,1778035848000,-500.0,0.00019893,2]
[421666746,1778035848000,-176.81839514,0.00019726,2]
[421666740,1778035848000,-500.0,0.00019726,2]
[421666744,1778035848000,-500.0,0.00019726,2]
[421666742,1778035848000,-500.0,0.00019726,2]
[421666745,1778035848000,-500.0,0.00019726,2]
[421666743,1778035848000,-500.0,0.00019726,2]
[421666747,1778035848000,-250.0,0.00019726,2]
[421666750,1778035848000,-500.0,0.00019893,2]
[421666749,1778035848000,-500.0,0.00019893,2]
[421666754,1778035848000,-500.0,0.00019893,2]
[421666751,1778035848000,-500.0,0.00019893,2]
[421666780,1778035848000,-500.0,0.00019894,2]
[421666783,1778035848000,-500.0,0.00019894,2]
[421666819,1778035848000,-8052.0,0.0002,2]
[421666813,1778035848000,-500.0,0.00019949,2]
[421666817,1778035848000,-1450.79975282,0.0002,2]
[421666816,1778035848000,-201.93286099,0.00019964,2]
[421666815,1778035848000,-551.68,0.00019949,2]
[421666818,1778035848000,-222.131232,0.0002,2]
[421666820,1778035848000,-395.0,0.0002,2]
[421666823,1778035848000,-394.0,0.0002,2]
[421666825,1778035848000,-385.0,0.0002,2]
[421666826,1778035848000,-536.0,0.0002,2]
[421666827,1778035848000,-198.0,0.0002,2]
[421666828,1778035848000,-1125.0,0.0002,2]
[421666833,1778035848000,-2494.55939289,0.00020454,2]
[421666831,1778035848000,-2414.6,0.00020381,2]
[421666834,1778035848000,-500.0,0.00020473,2]
[421666832,1778035848000,-500.0,0.00020453,2]
[421666829,1778035848000,-202.0,0.0002,2]
[421666824,1778035848000,-1179.0,0.0002,2]
[421666835,1778035848000,-500.0,0.00020473,2]
[421666837,1778035848000,-500.0,0.00020473,2]
[421666839,1778035848000,-500.0,0.00020473,2]
[421666838,1778035848000,-513.87,0.00020473,2]
[421666836,1778035848000,-500.0,0.00020473,2]
[421666840,1778035848000,-500.0,0.00020473,2]
[421666781,1778035848000,-500.0,0.00019894,2]
[421666814,1778035848000,-500.0,0.00019949,2]
[421666821,1778035848000,-177.0,0.0002,2]
[421666830,1778035848000,-350.0,0.00020274,2]
[421666812,1778035848000,-513.87,0.00019949,2]
[421666786,1778035848000,-513.87,0.00019894,2]
[421666811,1778035848000,-500.0,0.00019949,2]
[421666784,1778035848000,-513.87,0.00019894,2]
[421666788,1778035848000,-513.87,0.00019894,2]
[421666790,1778035848000,-500.0,0.00019894,2]
[421666789,1778035848000,-500.0,0.00019894,2]
[421666791,1778035848000,-500.0,0.00019894,2]
[421666792,1778035848000,-500.0,0.00019894,2]
[421666794,1778035848000,-500.0,0.00019894,2]
[421666795,1778035848000,-500.0,0.00019894,2]
[421666797,1778035848000,-500.0,0.00019894,2]
[421666798,1778035848000,-500.0,0.00019894,2]
[421666796,1778035848000,-500.0,0.00019894,2]
[421666793,1778035848000,-500.0,0.00019894,2]
[421666809,1778035848000,-500.0,0.00019949,2]
[421666822,1778035848000,-305.0,0.0002,2]
[421666799,1778035848000,-551.68,0.00019894,2]
[421666808,1778035848000,-500.0,0.00019949,2]
[421666806,1778035848000,-2405.55389864,0.00019906,2]
[421666807,1778035848000,-500.0,0.00019949,2]
[421666801,1778035848000,-551.68,0.00019894,2]
[421666805,1778035848000,-1000.0,0.00019906,7]
[421666800,1778035848000,-551.68,0.00019894,2]
[421666802,1778035848000,-551.68,0.00019894,2]
[421666810,1778035848000,-500.0,0.00019949,2]
[421666803,1778035848000,-551.68,0.00019894,2]
[421666804,1778035848000,-551.68,0.00019894,2]
[421666879,1778035849000,-925.0,0.00021425,2]
[421666881,1778035849000,-150.0,0.00021425,2]
[421666883,1778035849000,-150.0,0.00021425,2]
[421666882,1778035849000,-1268.0,0.00021425,2]
[421666876,1778035849000,-3536.0,0.00021425,2]
[421666870,1778035849000,-181.46,0.00021205,2]
[421666872,1778035849000,-80015.9105932,0.00021335,2]
[421666874,1778035849000,-500.0,0.00021413,2]
[421666873,1778035849000,-550.0,0.0002137,2]
[421666877,1778035849000,-624.0,0.00021425,2]
[421666880,1778035849000,-1221.0,0.00021425,2]
[421666875,1778035849000,-551.68,0.00021413,2]
[421666885,1778035849000,-150.0,0.00021425,2]
[421666895,1778035849000,-483.227327,0.00021502,2]
[421666888,1778035849000,-151.0,0.00021499,2]
[421666886,1778035849000,-150.0,0.00021425,2]
[421666889,1778035849000,-599.837577,0.00021502,2]
[421666887,1778035849000,-6043.0,0.00021425,2]
[421666891,1778035849000,-599.837577,0.00021502,2]
[421666901,1778035849000,-2009.2648498,0.00021502,2]
[421666890,1778035849000,-599.837577,0.00021502,2]
[421666902,1778035849000,-364828.1342139,0.00021502,2]
[421666892,1778035849000,-599.837577,0.00021502,2]
[421666893,1778035849000,-483.227327,0.00021502,2]
[421666897,1778035849000,-240.342369,0.00021502,2]
[421666869,1778035849000,-217.15233878,0.0002106,2]
[421666884,1778035849000,-928.0,0.00021425,2]
[421666871,1778035849000,-549.23,0.00021273,2]
[421666842,1778035849000,-599.60298507,0.00020511,2]
[421666878,1778035849000,-1352.0,0.00021425,2]
[421666841,1778035849000,-151.73898599,0.00020511,2]
[421666843,1778035849000,-209.40437684,0.00020512,2]
[421666848,1778035849000,-3700.0,0.000209,7]
[421666847,1778035849000,-450.0,0.00020822,2]
[421666846,1778035849000,-156.90090257,0.00020799,2]
[421666845,1778035849000,-152.0,0.00020662,3]
[421666850,1778035849000,-1118.95920278,0.00020972,2]
[421666849,1778035849000,-1104.55277201,0.00020972,2]
[421666844,1778035849000,-21766.67,0.00020548,2]
[421666851,1778035849000,-1035.23435317,0.00020972,2]
[421666853,1778035849000,-1032.72604566,0.00020972,2]
[421666852,1778035849000,-1023.50338599,0.00020972,2]
[421666867,1778035849000,-202.0,0.00021,2]
[421666854,1778035849000,-1149.25067809,0.00020972,2]
[421666866,1778035849000,-198.0,0.00021,2]
[421666856,1778035849000,-1118.85132904,0.00020972,2]
[421666865,1778035849000,-536.0,0.00021,2]
[421666855,1778035849000,-1019.93247172,0.00020972,2]
[421666858,1778035849000,-199.20437416,0.00021,2]
[421666862,1778035849000,-394.0,0.00021,2]
[421666864,1778035849000,-385.0,0.00021,2]
[421666859,1778035849000,-395.0,0.00021,2]
[421666863,1778035849000,-1179.0,0.00021,2]
[421666860,1778035849000,-177.0,0.00021,2]
[421666861,1778035849000,-305.0,0.00021,2]
[421666868,1778035849000,-2586.85809042,0.00021002,2]
[421666857,1778035849000,-1206.9777646,0.00021,2]
[421666894,1778035849000,-483.227327,0.00021502,2]
[421666907,1778035849000,-1133.345982,0.0002186,2]
[421666896,1778035849000,-483.227327,0.00021502,2]
[421666935,1778035849000,-166.702792,0.00021861,2]
[421666937,1778035849000,-5000.0,0.00021918,2]
[421666933,1778035849000,-551.68,0.00021861,2]
[421666934,1778035849000,-166.702792,0.00021861,2]
[421666936,1778035849000,-166.702792,0.00021861,2]
[421666939,1778035849000,-800.0,0.00021926,2]
[421666950,1778035849000,-177.0,0.00022,2]
[421666938,1778035849000,-401.94273924,0.00021918,2]
[421666949,1778035849000,-395.0,0.00022,2]
[421666942,1778035849000,-800.0,0.00021926,2]
[421666945,1778035849000,-800.0,0.00021926,2]
[421666940,1778035849000,-800.0,0.00021926,2]
[421666932,1778035849000,-551.68,0.00021861,2]
[421666947,1778035849000,-800.0,0.00021926,2]
[421666944,1778035849000,-800.0,0.00021926,2]
[421666941,1778035849000,-800.0,0.00021926,2]
[421666943,1778035849000,-800.0,0.00021926,2]
[421666948,1778035849000,-459.0,0.00021926,2]
[421666951,1778035849000,-305.0,0.00022,2]
[421666954,1778035849000,-200.0,0.00022,10]
[421666956,1778035849000,-536.0,0.00022,2]
[421666953,1778035849000,-1179.0,0.00022,2]
[421666957,1778035849000,-198.0,0.00022,2]
[421666955,1778035849000,-385.0,0.00022,2]
[421666952,1778035849000,-394.0,0.00022,2]
[421666900,1778035849000,-240.342369,0.00021502,2]
[421666946,1778035849000,-800.0,0.00021926,2]
[421666928,1778035849000,-500.0,0.00021861,2]
[421666958,1778035849000,-202.0,0.00022,2]
[421666930,1778035849000,-500.0,0.00021861,2]
[421666931,1778035849000,-559.40184847,0.00021861,2]
[421666898,1778035849000,-240.342369,0.00021502,2]
[421666903,1778035849000,-2553.1541015,0.00021502,2]
[421666905,1778035849000,-168.99085688,0.00021608,2]
[421666906,1778035849000,-1594.61,0.00021854,2]
[421666915,1778035849000,-151.0,0.0002186,2]
[421666908,1778035849000,-904.544289,0.0002186,2]
[421666914,1778035849000,-151.0,0.0002186,2]
[421666910,1778035849000,-151.0,0.0002186,2]
[421666904,1778035849000,-2682.57183977,0.0002155,2]
[421666909,1778035849000,-904.544289,0.0002186,2]
[421666913,1778035849000,-904.544289,0.0002186,2]
[421666911,1778035849000,-904.544289,0.0002186,2]
[421666899,1778035849000,-240.342369,0.00021502,2]
[421666916,1778035849000,-151.0,0.0002186,2]
[421666912,1778035849000,-216.481484,0.0002186,2]
[421666927,1778035849000,-513.87,0.00021861,2]
[421666917,1778035849000,-500.0,0.00021861,2]
[421666923,1778035849000,-518.42529008,0.00021861,2]
[421666924,1778035849000,-500.0,0.00021861,2]
[421666925,1778035849000,-500.0,0.00021861,2]
[421666929,1778035849000,-505.03766025,0.00021861,2]
[421666921,1778035849000,-500.0,0.00021861,2]
[421666920,1778035849000,-500.0,0.00021861,2]
[421666919,1778035849000,-500.0,0.00021861,2]
[421666922,1778035849000,-500.0,0.00021861,2]
[421666926,1778035849000,-513.87,0.00021861,2]
[421666918,1778035849000,-500.0,0.00021861,2]
[421666999,1778035850000,-354.624263,0.00023472,2]
[421666997,1778035850000,-133275.725544,0.00023472,2]
[421666995,1778035850000,-152.0,0.00023311,4]
[421666993,1778035850000,-557.886,0.00023198,7]
[421666991,1778035850000,-500.0,0.00023198,7]
[421666992,1778035850000,-500.0,0.00023198,7]
[421666989,1778035850000,-2991.49051684,0.00023194,2]
[421666998,1778035850000,-3481.4517946,0.00023472,2]
[421666988,1778035850000,-500.0,0.00023192,2]
[421666994,1778035850000,-621.78829552,0.0002325,2]
[421666990,1778035850000,-500.0,0.00023198,7]
[421667010,1778035850000,-551.68,0.00023899,2]
[421667000,1778035850000,-354.624263,0.00023472,2]
[421667004,1778035850000,-1291.071661,0.00023472,2]
[421667003,1778035850000,-1291.071661,0.00023472,2]
[421667005,1778035850000,-1291.071661,0.00023472,2]
[421667002,1778035850000,-354.624263,0.00023472,2]
[421667006,1778035850000,-1291.071661,0.00023472,2]
[421667001,1778035850000,-354.624263,0.00023472,2]
[421667007,1778035850000,-1436.07393916,0.00023606,2]
[421667008,1778035850000,-17853.962945,0.00023727,2]
[421667011,1778035850000,-448.3275877,0.00023913,2]
[421666978,1778035850000,-1047.0,0.00023,2]
[421667009,1778035850000,-506.21252675,0.00023899,2]
[421666996,1778035850000,-156.90090257,0.00023315,2]
[421666987,1778035850000,-202.0,0.00023,2]
[421666971,1778035850000,-188.558264,0.00022613,2]
[421666985,1778035850000,-536.0,0.00023,2]
[421667013,1778035850000,-569.6856835,0.00023913,2]
[421666960,1778035850000,-2781.82699784,0.00022098,2]
[421666959,1778035850000,-156.90090257,0.00022057,2]
[421666961,1778035850000,-300.0,0.000221,10]
[421666962,1778035850000,-2414.6,0.00022353,2]
[421666963,1778035850000,-152.381078,0.00022353,2]
[421666965,1778035850000,-488.000693,0.00022613,2]
[421666975,1778035850000,-928.723604,0.00022613,2]
[421666976,1778035850000,-928.723604,0.00022613,2]
[421666964,1778035850000,-1663.50053953,0.000226,2]
[421666966,1778035850000,-488.000693,0.00022613,2]
[421666970,1778035850000,-188.558264,0.00022613,2]
[421666974,1778035850000,-928.723604,0.00022613,2]
[421666972,1778035850000,-188.558264,0.00022613,2]
[421666967,1778035850000,-488.000693,0.00022613,2]
[421666969,1778035850000,-188.558264,0.00022613,2]
[421666968,1778035850000,-488.000693,0.00022613,2]
[421666973,1778035850000,-928.723604,0.00022613,2]
[421666977,1778035850000,-2884.75459676,0.00022646,2]
[421666980,1778035850000,-177.0,0.00023,2]
[421666984,1778035850000,-385.0,0.00023,2]
[421666981,1778035850000,-305.0,0.00023,2]
[421666979,1778035850000,-395.0,0.00023,2]
[421666986,1778035850000,-198.0,0.00023,2]
[421666982,1778035850000,-394.0,0.00023,2]
[421666983,1778035850000,-1179.0,0.00023,2]
[421667012,1778035850000,-81404.1600138,0.00023913,2]
[421667020,1778035850000,-177.0,0.00024,2]
[421667014,1778035850000,-151.0,0.00023913,2]
[421667045,1778035850000,-200.0,0.00024199,2]
[421667046,1778035850000,-314.0,0.00024199,2]
[421667049,1778035850000,-624.0,0.00024425,2]
[421667048,1778035850000,-3536.0,0.00024425,2]
[421667050,1778035850000,-1352.0,0.00024425,2]
[421667051,1778035850000,-925.0,0.00024425,2]
[421667052,1778035850000,-1221.0,0.00024425,2]
[421667047,1778035850000,-2414.6,0.00024324,2]
[421667053,1778035850000,-1268.0,0.00024425,2]
[421667054,1778035850000,-928.0,0.00024425,2]
[421667055,1778035850000,-150.0,0.00024425,2]
[421667063,1778035850000,-500.0,0.00024657,2]
[421667056,1778035850000,-6043.0,0.00024425,2]
[421667062,1778035850000,-500.0,0.00024657,2]
[421667058,1778035850000,-151.0,0.00024507,2]
[421667061,1778035850000,-156.90090257,0.00024573,2]
[421667060,1778035850000,-167.81107266,0.0002455,15]
[421667059,1778035850000,-33904.3320201,0.00024507,2]